[Event "Titled Tuesday Blitz July 4 Late 2023"]
[White "Leitao, Rafael"]
[Black "Kochiev, Ivan"]
[WhiteFideId "2101246"]
[BlackFideId "2917890"]
[WhiteElo "2787"]
[BlackElo "2561"]
[Result "1/2-1/2"]
[Round "6"]
[TimeControl "180+2"]
[Date "2023.07.04"]
[WhiteClock "0:00:09"]
[BlackClock "0:00:03"]
[Board "33"]

1. c4 {[%clk 0:03:00]}  Nf6 {[%clk 0:02:59]} 2. Nc3 {[%clk 0:02:59]}  e6 {[%clk 0:02:58]} 3. e4 {[%clk 0:02:59]}  d5 {[%clk 0:02:59]} 4. e5 {[%clk 0:02:59]}  d4 {[%clk 0:02:59]} 5. exf6 {[%clk 0:03:00]}  dxc3 {[%clk 0:03:00]} 6. bxc3 {[%clk 0:03:00]}  Qxf6 {[%clk 0:03:00]} 7. Nf3 {[%clk 0:03:01]}  h6 {[%clk 0:02:57]} 8. d4 {[%clk 0:02:58]}  b6 {[%clk 0:02:56]} 9. Bd3 {[%clk 0:02:40]}  Bb7 {[%clk 0:02:56]} 10. O-O {[%clk 0:02:40]}  Nd7 {[%clk 0:02:55]} 11. Nd2 {[%clk 0:02:37]}  Bd6 {[%clk 0:02:47]} 12. Qe2 {[%clk 0:02:33]}  Qe7 {[%clk 0:02:42]} 13. Ne4 {[%clk 0:02:29]}  O-O {[%clk 0:02:36]} 14. Re1 {[%clk 0:02:23]}  Rfe8 {[%clk 0:02:32]} 15. Bb2 {[%clk 0:02:09]}  Nf6 {[%clk 0:02:24]} 16. Ng3 {[%clk 0:02:00]}  c5 {[%clk 0:02:17]} 17. Rad1 {[%clk 0:02:00]}  a6 {[%clk 0:02:00]} 18. Bc1 {[%clk 0:01:58]}  Qc7 {[%clk 0:01:58]} 19. Be3 {[%clk 0:01:34]}  Bf4 {[%clk 0:01:51]} 20. Kh1 {[%clk 0:01:20]}  Rad8 {[%clk 0:01:37]} 21. Nh5 {[%clk 0:01:09]}  Nxh5 {[%clk 0:01:23]} 22. Qxh5 {[%clk 0:01:10]}  Bxe3 {[%clk 0:01:20]} 23. fxe3 {[%clk 0:01:08]}  Qc6 {[%clk 0:01:12]} 24. Qh3 {[%clk 0:01:06]}  b5 {[%clk 0:01:10]} 25. cxb5 {[%clk 0:01:04]}  axb5 {[%clk 0:01:11]} 26. Rb1 {[%clk 0:01:02]}  b4 {[%clk 0:01:08]} 27. Rec1 {[%clk 0:00:55]}  e5 {[%clk 0:00:42]} 28. cxb4 {[%clk 0:00:47]}  exd4 {[%clk 0:00:42]} 29. e4 {[%clk 0:00:41]}  Re5 {[%clk 0:00:29]} 30. bxc5 {[%clk 0:00:38]}  Rxc5 {[%clk 0:00:24]} 31. Rf1 {[%clk 0:00:36]}  Ba6 {[%clk 0:00:22]} 32. Rbd1 {[%clk 0:00:18]}  Rc3 {[%clk 0:00:20]} 33. Rf3 {[%clk 0:00:18]}  Qa4 {[%clk 0:00:15]} 34. Rdf1 {[%clk 0:00:16]}  Qxa2 {[%clk 0:00:10]} 35. Bxa6 {[%clk 0:00:13]}  Qxa6 {[%clk 0:00:10]} 36. Qf5 {[%clk 0:00:12]}  Rxf3 {[%clk 0:00:08]} 37. Qxf3 {[%clk 0:00:12]}  Rd7 {[%clk 0:00:07]} 38. Rd1 {[%clk 0:00:11]}  d3 {[%clk 0:00:06]} 39. h3 {[%clk 0:00:12]}  d2 {[%clk 0:00:05]} 40. Qe3 {[%clk 0:00:11]}  Qd6 {[%clk 0:00:03]} 41. Kg1 {[%clk 0:00:10]}  Qd4 {[%clk 0:00:02]} 42. Kf2 {[%clk 0:00:09]}  Kf8 {[%clk 0:00:02]} 43. Qxd4 {[%clk 0:00:09]}  Rxd4 {[%clk 0:00:02]} 44. Ke3 {[%clk 0:00:10]}  Rd7 {[%clk 0:00:01]} 45. Rxd2 {[%clk 0:00:11]}  Rxd2 {[%clk 0:00:02]} 46. Kxd2 {[%clk 0:00:11]}  Ke7 {[%clk 0:00:03]} 47. Ke3 {[%clk 0:00:09]}  Ke6 {[%clk 0:00:03]} 1/2-1/2


[Site "https://www.chess.com"]

[Event "Titled Tuesday Blitz July 4 Late 2023"]
[White "Luong Phuong Hanh"]
[Black "Mahdavi, Reza"]
[WhiteFideId "12401013"]
[BlackFideId "12595926"]
[WhiteElo "2482"]
[BlackElo "2748"]
[Result "0-1"]
[Round "6"]
[TimeControl "180+2"]
[Date "2023.07.04"]
[WhiteClock "0:00:36"]
[BlackClock "0:01:55"]
[Board "36"]

1. d4 {[%clk 0:02:59]}  Nf6 {[%clk 0:03:00]} 2. Nf3 {[%clk 0:02:59]}  e6 {[%clk 0:02:58]} 3. e3 {[%clk 0:02:59]}  b6 {[%clk 0:02:53]} 4. Bd3 {[%clk 0:02:58]}  Bb7 {[%clk 0:02:54]} 5. O-O {[%clk 0:02:58]}  Be7 {[%clk 0:02:54]} 6. c4 {[%clk 0:02:58]}  O-O {[%clk 0:02:54]} 7. Nc3 {[%clk 0:02:59]}  c5 {[%clk 0:02:51]} 8. d5 {[%clk 0:02:57]}  exd5 {[%clk 0:02:49]} 9. cxd5 {[%clk 0:02:58]}  d6 {[%clk 0:02:49]} 10. e4 {[%clk 0:02:58]}  Nbd7 {[%clk 0:02:50]} 11. Qe2 {[%clk 0:02:57]}  Re8 {[%clk 0:02:50]} 12. Qc2 {[%clk 0:02:55]}  Bf8 {[%clk 0:02:49]} 13. h3 {[%clk 0:02:53]}  a6 {[%clk 0:02:49]} 14. a4 {[%clk 0:02:52]}  h6 {[%clk 0:02:49]} 15. Bf4 {[%clk 0:02:52]}  Rc8 {[%clk 0:02:47]} 16. Rfe1 {[%clk 0:02:51]}  g6 {[%clk 0:02:44]} 17. Qd2 {[%clk 0:02:49]}  Kh7 {[%clk 0:02:43]} 18. Rac1 {[%clk 0:02:46]}  Nh5 {[%clk 0:02:41]} 19. Bh2 {[%clk 0:02:45]}  Qc7 {[%clk 0:02:39]} 20. b3 {[%clk 0:02:31]}  Bg7 {[%clk 0:02:33]} 21. Ne2 {[%clk 0:02:21]}  Ne5 {[%clk 0:02:29]} 22. Nxe5 {[%clk 0:02:20]}  Bxe5 {[%clk 0:02:30]} 23. f4 {[%clk 0:01:54]}  Bg7 {[%clk 0:02:29]} 24. f5 {[%clk 0:01:30]}  Be5 {[%clk 0:02:25]} 25. fxg6+ {[%clk 0:01:30]}  fxg6 {[%clk 0:02:24]} 26. g4 {[%clk 0:01:17]}  Nf6 {[%clk 0:02:19]} 27. Bf4 {[%clk 0:01:07]}  Qg7 {[%clk 0:02:07]} 28. Bxe5 {[%clk 0:01:05]}  Rxe5 {[%clk 0:02:08]} 29. Nf4 {[%clk 0:01:05]}  Rce8 {[%clk 0:02:07]} 30. Qg2 {[%clk 0:00:58]}  Nxd5 {[%clk 0:02:02]} 31. exd5 {[%clk 0:00:48]}  Rxe1+ {[%clk 0:02:03]} 32. Rxe1 {[%clk 0:00:48]}  Rxe1+ {[%clk 0:02:00]} 33. Kh2 {[%clk 0:00:49]}  Qe5 {[%clk 0:01:55]} 34. Bxg6+ {[%clk 0:00:47]}  Kg7 {[%clk 0:01:55]} 35. Qg3 {[%clk 0:00:48]}  Re2+ {[%clk 0:01:56]} 36. Kh1 {[%clk 0:00:36]}  Bxd5+ {[%clk 0:01:55]} 0-1


[Site "https://www.chess.com"]

[Event "Titled Tuesday Blitz July 4 Late 2023"]
[White "Mindhunter08"]
[Black "Stoleriu, George"]
[BlackFideId "1227505"]
[WhiteElo "2410"]
[BlackElo "2686"]
[Result "1/2-1/2"]
[Round "6"]
[TimeControl "180+2"]
[Date "2023.07.04"]
[WhiteClock "0:02:18"]
[BlackClock "0:02:19"]
[Board "38"]

1. e4 {[%clk 0:03:00]}  e6 {[%clk 0:02:57]} 2. d4 {[%clk 0:02:56]}  d5 {[%clk 0:02:58]} 3. Nc3 {[%clk 0:02:56]}  Bb4 {[%clk 0:02:52]} 4. Ne2 {[%clk 0:02:56]}  Nf6 {[%clk 0:02:48]} 5. e5 {[%clk 0:02:53]}  Nfd7 {[%clk 0:02:43]} 6. a3 {[%clk 0:02:53]}  Be7 {[%clk 0:02:39]} 7. Nf4 {[%clk 0:02:46]}  c5 {[%clk 0:02:32]} 8. Qg4 {[%clk 0:02:37]}  g6 {[%clk 0:02:26]} 9. Bd3 {[%clk 0:02:32]}  cxd4 {[%clk 0:02:22]} 10. Nxe6 {[%clk 0:02:30]}  fxe6 {[%clk 0:02:19]} 11. Bxg6+ {[%clk 0:02:25]}  hxg6 {[%clk 0:02:20]} 12. Qxg6+ {[%clk 0:02:26]}  Kf8 {[%clk 0:02:19]} 13. Bh6+ {[%clk 0:02:21]}  Rxh6 {[%clk 0:02:20]} 14. Qxh6+ {[%clk 0:02:22]}  Kf7 {[%clk 0:02:20]} 15. Qh7+ {[%clk 0:02:19]}  Kf8 {[%clk 0:02:18]} 16. Qh8+ {[%clk 0:02:16]}  Kf7 {[%clk 0:02:18]} 17. Qh7+ {[%clk 0:02:17]}  Kf8 {[%clk 0:02:18]} 18. Qh8+ {[%clk 0:02:17]}  Kf7 {[%clk 0:02:19]} 19. Qh7+ {[%clk 0:02:18]} 1/2-1/2


[Site "https://www.chess.com"]

[Event "Titled Tuesday Blitz July 4 Late 2023"]
[White "Dardha, Daniel"]
[Black "Ardila, Oscar Humberto"]
[WhiteFideId "240990"]
[BlackFideId "4404742"]
[WhiteElo "2872"]
[BlackElo "2341"]
[Result "1-0"]
[Round "6"]
[TimeControl "180+2"]
[Date "2023.07.04"]
[WhiteClock "0:01:20"]
[BlackClock "0:00:00"]
[Board "40"]

1. d4 {[%clk 0:03:00]}  Nf6 {[%clk 0:02:59]} 2. Bg5 {[%clk 0:03:01]}  e6 {[%clk 0:03:00]} 3. e4 {[%clk 0:03:01]}  Be7 {[%clk 0:03:00]} 4. e5 {[%clk 0:03:01]}  Nd5 {[%clk 0:03:00]} 5. h4 {[%clk 0:03:01]}  Bxg5 {[%clk 0:02:55]} 6. hxg5 {[%clk 0:03:02]}  Qxg5 {[%clk 0:02:55]} 7. Nf3 {[%clk 0:03:03]}  Qe7 {[%clk 0:02:50]} 8. c4 {[%clk 0:03:03]}  Qb4+ {[%clk 0:02:45]} 9. Nbd2 {[%clk 0:03:03]}  Nf4 {[%clk 0:02:42]} 10. g3 {[%clk 0:03:00]}  Ng6 {[%clk 0:02:41]} 11. Bd3 {[%clk 0:02:59]}  Qxb2 {[%clk 0:02:32]} 12. Rb1 {[%clk 0:02:54]}  Qc3 {[%clk 0:02:23]} 13. Rb3 {[%clk 0:02:53]}  Qa5 {[%clk 0:02:23]} 14. Bxg6 {[%clk 0:02:49]}  fxg6 {[%clk 0:02:23]} 15. Qc2 {[%clk 0:02:48]}  O-O {[%clk 0:02:16]} 16. Rxh7 {[%clk 0:02:38]}  Rf5 {[%clk 0:01:14]} 17. Rh1 {[%clk 0:02:20]}  Nc6 {[%clk 0:01:04]} 18. Qe4 {[%clk 0:02:15]}  d5 {[%clk 0:00:56]} 19. exd6 {[%clk 0:02:07]}  cxd6 {[%clk 0:00:56]} 20. g4 {[%clk 0:02:03]}  Rf6 {[%clk 0:00:42]} 21. g5 {[%clk 0:01:55]}  Rf5 {[%clk 0:00:42]} 22. Qh4 {[%clk 0:01:50]}  Bd7 {[%clk 0:00:39]} 23. Qh8+ {[%clk 0:01:47]}  Kf7 {[%clk 0:00:40]} 24. Qxa8 {[%clk 0:01:48]}  Nxd4 {[%clk 0:00:20]} 25. Nxd4 {[%clk 0:01:42]}  Qe5+ {[%clk 0:00:20]} 26. Re3 {[%clk 0:01:37]}  Qxd4 {[%clk 0:00:19]} 27. Rh8 {[%clk 0:01:38]}  Qa1+ {[%clk 0:00:03]} 28. Ke2 {[%clk 0:01:38]}  e5 {[%clk 0:00:03]} 29. Rf8+ {[%clk 0:01:28]}  Ke6 {[%clk 0:00:03]} 30. Re8+ {[%clk 0:01:28]}  Kf7 {[%clk 0:00:02]} 31. Rf8+ {[%clk 0:01:27]}  Ke6 {[%clk 0:00:02]} 32. Rxf5 {[%clk 0:01:27]}  gxf5 {[%clk 0:00:02]} 33. Qg8+ {[%clk 0:01:27]}  Ke7 {[%clk 0:00:03]} 34. Qxg7+ {[%clk 0:01:26]}  Kd8 {[%clk 0:00:03]} 35. Qf6+ {[%clk 0:01:24]}  Kc8 {[%clk 0:00:03]} 36. Qxd6 {[%clk 0:01:22]}  f4 {[%clk 0:00:03]} 37. Qxe5 {[%clk 0:01:21]}  Qxa2 {[%clk 0:00:03]} 38. Qxf4 {[%clk 0:01:20]}  b6 {[%clk 0:00:00]} 39. g6 {[%clk 0:01:20]} 1-0


[Site "https://www.chess.com"]

[Event "Titled Tuesday Blitz July 4 Late 2023"]
[White "Rottenwohrer Suarez, Juan"]
[Black "Ghazarian, Kirk"]
[WhiteFideId "32068182"]
[BlackFideId "30908604"]
[WhiteElo "2535"]
[BlackElo "2741"]
[Result "0-1"]
[Round "6"]
[TimeControl "180+2"]
[Date "2023.07.04"]
[WhiteClock "0:00:00"]
[BlackClock "0:00:04"]
[Board "45"]

1. Nf3 {[%clk 0:03:00]}  d5 {[%clk 0:02:58]} 2. g3 {[%clk 0:03:01]}  Nf6 {[%clk 0:02:57]} 3. Bg2 {[%clk 0:03:01]}  b5 {[%clk 0:02:57]} 4. O-O {[%clk 0:02:39]}  Bb7 {[%clk 0:02:57]} 5. a4 {[%clk 0:02:37]}  b4 {[%clk 0:02:56]} 6. b3 {[%clk 0:02:37]}  e6 {[%clk 0:02:55]} 7. Bb2 {[%clk 0:02:38]}  Be7 {[%clk 0:02:56]} 8. d3 {[%clk 0:02:38]}  O-O {[%clk 0:02:56]} 9. Nbd2 {[%clk 0:02:38]}  c5 {[%clk 0:02:56]} 10. e4 {[%clk 0:02:38]}  Nc6 {[%clk 0:02:56]} 11. Qe2 {[%clk 0:02:22]}  Re8 {[%clk 0:02:55]} 12. Rad1 {[%clk 0:02:21]}  Qc7 {[%clk 0:02:54]} 13. Rfe1 {[%clk 0:02:19]}  Rad8 {[%clk 0:02:50]} 14. h4 {[%clk 0:02:19]}  h6 {[%clk 0:02:50]} 15. e5 {[%clk 0:02:14]}  Nd7 {[%clk 0:02:49]} 16. Nf1 {[%clk 0:02:14]}  Nb6 {[%clk 0:02:39]} 17. N1h2 {[%clk 0:02:12]}  c4 {[%clk 0:02:38]} 18. Ng4 {[%clk 0:02:01]}  Na5 {[%clk 0:02:34]} 19. Bc1 {[%clk 0:01:39]}  cxb3 {[%clk 0:02:26]} 20. cxb3 {[%clk 0:01:40]}  Nxb3 {[%clk 0:02:26]} 21. Bxh6 {[%clk 0:01:39]}  gxh6 {[%clk 0:02:25]} 22. Nxh6+ {[%clk 0:01:33]}  Kg7 {[%clk 0:02:25]} 23. Ng4 {[%clk 0:01:26]}  d4 {[%clk 0:02:19]} 24. Rb1 {[%clk 0:00:52]}  Qc3 {[%clk 0:02:11]} 25. Ng5 {[%clk 0:00:31]}  Bxg2 {[%clk 0:02:10]} 26. Kxg2 {[%clk 0:00:32]}  Bxg5 {[%clk 0:02:08]} 27. hxg5 {[%clk 0:00:32]}  Qc6+ {[%clk 0:02:02]} 28. f3 {[%clk 0:00:21]}  Nc5 {[%clk 0:02:02]} 29. Rh1 {[%clk 0:00:18]}  Rh8 {[%clk 0:02:02]} 30. Nf6 {[%clk 0:00:17]}  Nbxa4 {[%clk 0:01:57]} 31. Qd2 {[%clk 0:00:17]}  Nc3 {[%clk 0:01:51]} 32. Ra1 {[%clk 0:00:17]}  a6 {[%clk 0:01:42]} 33. Qf4 {[%clk 0:00:17]}  Rdg8 {[%clk 0:00:54]} 34. Nxg8 {[%clk 0:00:15]}  Rxg8 {[%clk 0:00:55]} 35. Qf6+ {[%clk 0:00:07]}  Kf8 {[%clk 0:00:54]} 36. Rh8 {[%clk 0:00:08]}  Rxh8 {[%clk 0:00:29]} 37. Qxh8+ {[%clk 0:00:09]}  Ke7 {[%clk 0:00:30]} 38. Qf6+ {[%clk 0:00:10]}  Kd7 {[%clk 0:00:13]} 39. Qxf7+ {[%clk 0:00:10]}  Kc8 {[%clk 0:00:13]} 40. Rh1 {[%clk 0:00:10]}  Nb7 {[%clk 0:00:10]} 41. Rh8+ {[%clk 0:00:06]}  Nd8 {[%clk 0:00:10]} 42. Qe7 {[%clk 0:00:06]}  Qd7 {[%clk 0:00:10]} 43. Qc5+ {[%clk 0:00:06]}  Qc7 {[%clk 0:00:07]} 44. Qxd4 {[%clk 0:00:03]}  Nd5 {[%clk 0:00:04]} 45. g6 {[%clk 0:00:01]}  Qc2+ {[%clk 0:00:05]} 46. Kh3 {[%clk 0:00:00]}  Qc7 {[%clk 0:00:04]} 0-1


[Site "https://www.chess.com"]

[Event "Titled Tuesday Blitz July 4 Late 2023"]
[White "WindWhistler11"]
[Black "Shuvalova, Polina"]
[BlackFideId "24171760"]
[WhiteElo "2534"]
[BlackElo "2686"]
[Result "0-1"]
[Round "6"]
[TimeControl "180+2"]
[Date "2023.07.04"]
[WhiteClock "0:00:01"]
[BlackClock "0:00:24"]
[Board "48"]

1. Nf3 {[%clk 0:03:00]}  c5 {[%clk 0:02:56]} 2. g3 {[%clk 0:02:59]}  g6 {[%clk 0:02:50]} 3. d4 {[%clk 0:02:56]}  cxd4 {[%clk 0:02:48]} 4. Nxd4 {[%clk 0:02:56]}  Bg7 {[%clk 0:02:47]} 5. c4 {[%clk 0:02:55]}  Nc6 {[%clk 0:02:48]} 6. Nc2 {[%clk 0:02:55]}  Nf6 {[%clk 0:02:47]} 7. Nc3 {[%clk 0:02:54]}  O-O {[%clk 0:02:46]} 8. Bg2 {[%clk 0:02:54]}  d6 {[%clk 0:02:38]} 9. O-O {[%clk 0:02:48]}  Be6 {[%clk 0:02:34]} 10. Ne3 {[%clk 0:02:35]}  Rc8 {[%clk 0:02:34]} 11. b3 {[%clk 0:02:20]}  Ng4 {[%clk 0:02:28]} 12. Qd2 {[%clk 0:02:13]}  Nxe3 {[%clk 0:02:17]} 13. Qxe3 {[%clk 0:02:11]}  Nd4 {[%clk 0:02:08]} 14. Rb1 {[%clk 0:01:55]}  Bf5 {[%clk 0:01:45]} 15. Rb2 {[%clk 0:01:55]}  b5 {[%clk 0:01:40]} 16. Nxb5 {[%clk 0:01:46]}  Nxb5 {[%clk 0:01:34]} 17. cxb5 {[%clk 0:01:46]}  d5 {[%clk 0:01:11]} 18. Rd2 {[%clk 0:01:42]}  d4 {[%clk 0:01:07]} 19. Qf3 {[%clk 0:01:32]}  e5 {[%clk 0:01:03]} 20. Qd5 {[%clk 0:01:05]}  Qa5 {[%clk 0:00:59]} 21. Qd6 {[%clk 0:00:31]}  Rxc1 {[%clk 0:00:49]} 22. Rxc1 {[%clk 0:00:30]}  Qxd2 {[%clk 0:00:49]} 23. Rf1 {[%clk 0:00:21]}  Qxe2 {[%clk 0:00:46]} 24. Qc7 {[%clk 0:00:21]}  d3 {[%clk 0:00:43]} 25. Qb7 {[%clk 0:00:19]}  d2 {[%clk 0:00:42]} 26. Bf3 {[%clk 0:00:19]}  Qd3 {[%clk 0:00:39]} 27. Bd5 {[%clk 0:00:15]}  Qxf1+ {[%clk 0:00:32]} 28. Kxf1 {[%clk 0:00:03]}  d1=Q+ {[%clk 0:00:31]} 29. Kg2 {[%clk 0:00:01]}  Bd3 {[%clk 0:00:24]} 0-1


[Site "https://www.chess.com"]

[Event "Titled Tuesday Blitz July 4 Late 2023"]
[White "Camacho Collados, Marcos"]
[Black "Rastbod, Ali"]
[WhiteFideId "2266237"]
[BlackFideId "12567477"]
[WhiteElo "2527"]
[BlackElo "2674"]
[Result "0-1"]
[Round "6"]
[TimeControl "180+2"]
[Date "2023.07.04"]
[WhiteClock "0:00:00"]
[BlackClock "0:00:28"]
[Board "51"]

1. Nf3 {[%clk 0:03:00]}  Nf6 {[%clk 0:02:53]} 2. g3 {[%clk 0:03:01]}  b5 {[%clk 0:02:51]} 3. Bg2 {[%clk 0:03:00]}  Bb7 {[%clk 0:02:52]} 4. O-O {[%clk 0:03:01]}  c5 {[%clk 0:02:52]} 5. d3 {[%clk 0:03:00]}  e6 {[%clk 0:02:45]} 6. e4 {[%clk 0:03:00]}  d6 {[%clk 0:02:45]} 7. Re1 {[%clk 0:02:44]}  Nbd7 {[%clk 0:02:45]} 8. c3 {[%clk 0:02:44]}  Be7 {[%clk 0:02:40]} 9. Nbd2 {[%clk 0:02:42]}  O-O {[%clk 0:02:40]} 10. d4 {[%clk 0:02:41]}  cxd4 {[%clk 0:02:35]} 11. cxd4 {[%clk 0:02:41]}  Qb6 {[%clk 0:02:36]} 12. b3 {[%clk 0:02:33]}  Rac8 {[%clk 0:02:24]} 13. Bb2 {[%clk 0:02:34]}  Rfd8 {[%clk 0:02:22]} 14. Rc1 {[%clk 0:02:19]}  a5 {[%clk 0:02:18]} 15. Rxc8 {[%clk 0:02:16]}  Rxc8 {[%clk 0:02:16]} 16. h4 {[%clk 0:02:06]}  h6 {[%clk 0:02:10]} 17. e5 {[%clk 0:01:49]}  dxe5 {[%clk 0:02:02]} 18. dxe5 {[%clk 0:01:50]}  Ng4 {[%clk 0:02:02]} 19. Bd4 {[%clk 0:01:43]}  Bc5 {[%clk 0:01:57]} 20. Bxc5 {[%clk 0:01:38]}  Nxc5 {[%clk 0:01:58]} 21. Qe2 {[%clk 0:01:33]}  Rd8 {[%clk 0:01:17]} 22. Rf1 {[%clk 0:01:22]}  Nd3 {[%clk 0:01:13]} 23. h5 {[%clk 0:01:12]}  Qc5 {[%clk 0:00:58]} 24. b4 {[%clk 0:00:22]}  Qxb4 {[%clk 0:00:56]} 25. Bh3 {[%clk 0:00:14]}  a4 {[%clk 0:00:47]} 26. Rb1 {[%clk 0:00:10]}  Nb2 {[%clk 0:00:31]} 27. Bxg4 {[%clk 0:00:10]}  Qxg4 {[%clk 0:00:32]} 28. Rxb2 {[%clk 0:00:10]}  Rxd2 {[%clk 0:00:31]} 29. Rxd2 {[%clk 0:00:06]}  Bxf3 {[%clk 0:00:31]} 30. Rd8+ {[%clk 0:00:06]}  Kh7 {[%clk 0:00:32]} 31. Qc2+ {[%clk 0:00:05]}  Be4 {[%clk 0:00:29]} 32. Qc8 {[%clk 0:00:04]}  Qxh5 {[%clk 0:00:29]} 33. Rh8+ {[%clk 0:00:03]}  Kg6 {[%clk 0:00:30]} 34. f3 {[%clk 0:00:02]}  Qxf3 {[%clk 0:00:30]} 35. Rxh6+ {[%clk 0:00:00]}  Kxh6 {[%clk 0:00:28]} 0-1


[Site "https://www.chess.com"]

[Event "Titled Tuesday Blitz July 4 Late 2023"]
[White "Rosen, Eric"]
[Black "Womacka, Mathias"]
[WhiteFideId "2032562"]
[BlackFideId "4611390"]
[WhiteElo "2670"]
[BlackElo "2523"]
[Result "1-0"]
[Round "6"]
[TimeControl "180+2"]
[Date "2023.07.04"]
[WhiteClock "0:00:22"]
[BlackClock "0:00:00"]
[Board "52"]

1. d4 {[%clk 0:03:00]}  Nf6 {[%clk 0:02:58]} 2. Bf4 {[%clk 0:03:01]}  c5 {[%clk 0:02:56]} 3. e3 {[%clk 0:03:00]}  e6 {[%clk 0:02:55]} 4. Nf3 {[%clk 0:03:00]}  d5 {[%clk 0:02:55]} 5. Nbd2 {[%clk 0:03:00]}  Bd6 {[%clk 0:02:55]} 6. Bb5+ {[%clk 0:02:57]}  Nc6 {[%clk 0:02:53]} 7. O-O {[%clk 0:02:56]}  O-O {[%clk 0:02:50]} 8. dxc5 {[%clk 0:02:44]}  Bxc5 {[%clk 0:02:48]} 9. c4 {[%clk 0:02:42]}  Be7 {[%clk 0:02:16]} 10. Rc1 {[%clk 0:02:37]}  Nb4 {[%clk 0:02:06]} 11. cxd5 {[%clk 0:02:25]}  Nfxd5 {[%clk 0:01:51]} 12. a3 {[%clk 0:02:24]}  Nxf4 {[%clk 0:01:50]} 13. exf4 {[%clk 0:02:25]}  Nd3 {[%clk 0:01:42]} 14. Bxd3 {[%clk 0:02:09]}  Qxd3 {[%clk 0:01:43]} 15. Nc4 {[%clk 0:02:10]}  Rd8 {[%clk 0:01:15]} 16. Qxd3 {[%clk 0:01:56]}  Rxd3 {[%clk 0:01:16]} 17. Nfe5 {[%clk 0:01:57]}  Rd4 {[%clk 0:01:11]} 18. g3 {[%clk 0:01:45]}  Bd7 {[%clk 0:01:00]} 19. Nxd7 {[%clk 0:01:38]}  Rxd7 {[%clk 0:01:01]} 20. Ne5 {[%clk 0:01:39]}  Rd2 {[%clk 0:00:54]} 21. Rc7 {[%clk 0:01:37]}  Bd6 {[%clk 0:00:50]} 22. Rd7 {[%clk 0:01:19]}  Rd5 {[%clk 0:00:37]} 23. Nxf7 {[%clk 0:01:05]}  Bxa3 {[%clk 0:00:36]} 24. Rxb7 {[%clk 0:00:39]}  Bxb2 {[%clk 0:00:35]} 25. Nh6+ {[%clk 0:00:38]}  gxh6 {[%clk 0:00:33]} 26. Rxb2 {[%clk 0:00:39]}  a5 {[%clk 0:00:27]} 27. Ra1 {[%clk 0:00:35]}  a4 {[%clk 0:00:26]} 28. Ra3 {[%clk 0:00:35]}  Kf7 {[%clk 0:00:20]} 29. Rb4 {[%clk 0:00:35]}  Rda5 {[%clk 0:00:19]} 30. Kg2 {[%clk 0:00:35]}  h5 {[%clk 0:00:17]} 31. Kf3 {[%clk 0:00:35]}  Kf6 {[%clk 0:00:17]} 32. Ke4 {[%clk 0:00:35]}  R8a7 {[%clk 0:00:16]} 33. h3 {[%clk 0:00:35]}  R7a6 {[%clk 0:00:16]} 34. Rb7 {[%clk 0:00:33]}  Ra7 {[%clk 0:00:15]} 35. Rb6 {[%clk 0:00:31]}  R7a6 {[%clk 0:00:14]} 36. Rb4 {[%clk 0:00:32]}  Ra7 {[%clk 0:00:14]} 37. Kd4 {[%clk 0:00:27]}  R7a6 {[%clk 0:00:14]} 38. Rb7 {[%clk 0:00:21]}  Ra7 {[%clk 0:00:13]} 39. Rb8 {[%clk 0:00:21]}  Rd5+ {[%clk 0:00:09]} 40. Ke4 {[%clk 0:00:21]}  Rda5 {[%clk 0:00:08]} 41. Rb2 {[%clk 0:00:21]}  R7a6 {[%clk 0:00:07]} 42. Kf3 {[%clk 0:00:22]}  Ra7 {[%clk 0:00:07]} 43. Re2 {[%clk 0:00:22]}  R7a6 {[%clk 0:00:07]} 44. Ree3 {[%clk 0:00:23]}  Ra7 {[%clk 0:00:07]} 45. Re4 {[%clk 0:00:23]}  R7a6 {[%clk 0:00:07]} 46. Re1 {[%clk 0:00:24]}  Ra7 {[%clk 0:00:07]} 47. Rea1 {[%clk 0:00:25]}  R7a6 {[%clk 0:00:08]} 48. R1a2 {[%clk 0:00:25]}  Ra7 {[%clk 0:00:08]} 49. Rb2 {[%clk 0:00:26]}  R7a6 {[%clk 0:00:08]} 50. Rb8 {[%clk 0:00:27]}  Ra7 {[%clk 0:00:08]} 51. Rf8+ {[%clk 0:00:27]}  Kg7 {[%clk 0:00:08]} 52. Re8 {[%clk 0:00:26]}  Kf7 {[%clk 0:00:08]} 53. Rh8 {[%clk 0:00:26]}  Kg7 {[%clk 0:00:08]} 54. Rb8 {[%clk 0:00:26]}  Kf7 {[%clk 0:00:08]} 55. g4 {[%clk 0:00:25]}  hxg4+ {[%clk 0:00:07]} 56. hxg4 {[%clk 0:00:26]}  h6 {[%clk 0:00:08]} 57. Kg3 {[%clk 0:00:25]}  Kg6 {[%clk 0:00:08]} 58. Rb6 {[%clk 0:00:24]}  Kf7 {[%clk 0:00:08]} 59. Kh4 {[%clk 0:00:23]}  R7a6 {[%clk 0:00:07]} 60. Rb7+ {[%clk 0:00:23]}  Kg6 {[%clk 0:00:06]} 61. Rb8 {[%clk 0:00:24]}  Ra7 {[%clk 0:00:05]} 62. Rg8+ {[%clk 0:00:24]}  Kf7 {[%clk 0:00:05]} 63. Rc8 {[%clk 0:00:24]}  Kg6 {[%clk 0:00:05]} 64. Kg3 {[%clk 0:00:25]}  Kf6 {[%clk 0:00:05]} 65. Rc1 {[%clk 0:00:25]}  Kg6 {[%clk 0:00:05]} 66. Rh1 {[%clk 0:00:26]}  R7a6 {[%clk 0:00:04]} 67. Kg2 {[%clk 0:00:26]}  Rb6 {[%clk 0:00:04]} 68. Rah3 {[%clk 0:00:23]}  a3 {[%clk 0:00:02]} 69. Rxh6+ {[%clk 0:00:23]}  Kf7 {[%clk 0:00:02]} 70. Rh7+ {[%clk 0:00:23]}  Ke8 {[%clk 0:00:00]} 71. Rc7 {[%clk 0:00:22]} 1-0


[Site "https://www.chess.com"]